[Event "Open Nuevo Centro. Jornada 1"]
[Site "Chess.com"]
[Date "2020.06.19"]
[Round "7"]
[White "Gimenez Saiz, Jose Raul"]
[Black "Castellano L�pez, Javier"]
[Result "0-1"]
[WhiteElo "1534"]
[BlackElo "1765"]
[TimeControl "180+2"]
[EndTime "11:52:01 PDT"]
[Termination "Victoria de its_xavi_official por abandono"]

1. d4 {[%clk 0:02:55.9]} 1... Nf6 {[%clk 0:02:59.7]} 2. e3 {[%clk 0:02:53.1]}
2... d5 {[%clk 0:02:56.8]} 3. Bd3 {[%clk 0:02:54.1]} 3... Bg4 {[%clk 0:02:52.5]}
4. Nf3 {[%clk 0:02:51.1]} 4... c6 {[%clk 0:02:50]} 5. c4 {[%clk 0:02:49.2]} 5...
e6 {[%clk 0:02:49.2]} 6. Nc3 {[%clk 0:02:47.6]} 6... Bd6 {[%clk 0:02:46.7]} 7.
Qb3 {[%clk 0:02:46.7]} 7... Qb6 {[%clk 0:02:45]} 8. Qc2 {[%clk 0:02:32.4]} 8...
dxc4 {[%clk 0:02:43.7]} 9. Bxc4 {[%clk 0:02:30.5]} 9... Nbd7 {[%clk 0:02:43.9]}
10. Be2 {[%clk 0:02:13.6]} 10... O-O {[%clk 0:02:39]} 11. O-O {[%clk 0:02:13]}
11... Rad8 {[%clk 0:02:29.6]} 12. Bd2 {[%clk 0:02:11.3]} 12... Rfe8 {[%clk
0:02:29.1]} 13. h3 {[%clk 0:02:11.2]} 13... Bh5 {[%clk 0:02:29.5]} 14. Rac1
{[%clk 0:02:09.5]} 14... e5 {[%clk 0:02:15.2]} 15. dxe5 {[%clk 0:01:59]} 15...
Nxe5 {[%clk 0:02:10.3]} 16. Nxe5 {[%clk 0:01:46.7]} 16... Bxe2 {[%clk 0:02:06]}
17. Nxe2 {[%clk 0:01:40.1]} 17... Bxe5 {[%clk 0:02:05.5]} 18. Bc3 {[%clk
0:01:38.8]} 18... Rd5 {[%clk 0:01:47.5]} 19. Bxe5 {[%clk 0:01:38.4]} 19... Rexe5
{[%clk 0:01:42.1]} 20. Nf4 {[%clk 0:01:34.5]} 20... Rb5 {[%clk 0:01:35.6]} 21.
b3 {[%clk 0:01:34]} 21... a5 {[%clk 0:01:32]} 22. Nd3 {[%clk 0:01:28.8]} 22...
Re8 {[%clk 0:01:25.7]} 23. Nb2 {[%clk 0:01:21.7]} 23... Nd5 {[%clk 0:01:07.5]}
24. Nc4 {[%clk 0:01:16.5]} 24... Qc7 {[%clk 0:01:01.6]} 25. a3 {[%clk
0:00:43.5]} 25... Rc5 {[%clk 0:00:39.1]} 26. Qe2 {[%clk 0:00:37.3]} 26... Nb6
{[%clk 0:00:36.3]} 27. Nxb6 {[%clk 0:00:36]} 27... Qxb6 {[%clk 0:00:37.2]} 28.
Rxc5 {[%clk 0:00:36.1]} 28... Qxc5 {[%clk 0:00:39.1]} 29. Qb2 {[%clk 0:00:28.2]}
29... Rd8 {[%clk 0:00:37.6]} 30. Rc1 {[%clk 0:00:27.3]} 30... Qb5 {[%clk
0:00:32.6]} 31. Qc3 {[%clk 0:00:25.7]} 31... Rd3 {[%clk 0:00:30.2]} 32. Qc4
{[%clk 0:00:25.8]} 32... Rxb3 {[%clk 0:00:24.9]} 33. Qxb5 {[%clk 0:00:16.6]}
33... Rxb5 {[%clk 0:00:24.9]} 34. a4 {[%clk 0:00:15.2]} 34... Rb4 {[%clk
0:00:25.3]} 35. Rd1 {[%clk 0:00:15.6]} 35... Kf8 {[%clk 0:00:25.9]} 36. Rd7
{[%clk 0:00:14.3]} 36... b5 {[%clk 0:00:24.2]} 37. axb5 {[%clk 0:00:14.1]} 37...
cxb5 {[%clk 0:00:24.6]} 38. Kf1 {[%clk 0:00:13.2]} 38... a4 {[%clk 0:00:22.5]}
39. Ke2 {[%clk 0:00:12.4]} 39... a3 {[%clk 0:00:23.3]} 40. Ra7 {[%clk
0:00:12.4]} 40... Rb2+ {[%clk 0:00:24.1]} 41. Ke1 {[%clk 0:00:13.6]} 41... b4
{[%clk 0:00:25.3]} 42. f4 {[%clk 0:00:13.1]} 42... a2 {[%clk 0:00:26.2]} 43. Kd1
{[%clk 0:00:12.2]} 43... Rb1+ {[%clk 0:00:26.5]} 0

[Event "Open Nuevo Centro. Jornada 1"]
[Site "Chess.com"]
[Date "2020.06.19"]
[Round "7"]
[White "Martinez Villena, David"]
[Black "Blanco Solaz, Ram�n"]
[Result "0-1"]
[WhiteElo "1705"]
[BlackElo "1976"]
[TimeControl "180+2"]
[EndTime "11:52:06 PDT"]
[Termination "Victoria de Rbs77 por abandono"]

1. e4 {[%clk 0:03:01.9]} 1... c5 {[%clk 0:03:01.1]} 2. c3 {[%clk 0:03:01.7]}
2... d5 {[%clk 0:03:01.7]} 3. exd5 {[%clk 0:03:01.5]} 3... Qxd5 {[%clk
0:02:49.4]} 4. d4 {[%clk 0:03:01.7]} 4... Nf6 {[%clk 0:02:49.4]} 5. Nf3 {[%clk
0:03:01.7]} 5... Bg4 {[%clk 0:02:50.7]} 6. Be2 {[%clk 0:03:02.2]} 6... e6 {[%clk
0:02:51.4]} 7. O-O {[%clk 0:03:03]} 7... cxd4 {[%clk 0:02:37.2]} 8. cxd4 {[%clk
0:03:03.3]} 8... Bb4 {[%clk 0:02:32.8]} 9. h3 {[%clk 0:03:02.7]} 9... Bh5 {[%clk
0:02:31.9]} 10. a3 {[%clk 0:03:00.4]} 10... Ba5 {[%clk 0:02:32.3]} 11. b4 {[%clk
0:02:57.7]} 11... Bc7 {[%clk 0:02:33.1]} 12. Nc3 {[%clk 0:02:51.2]} 12... Qd8
{[%clk 0:02:29.3]} 13. Nb5 {[%clk 0:02:49.3]} 13... O-O {[%clk 0:02:27.8]} 14.
Nxc7 {[%clk 0:02:47.2]} 14... Qxc7 {[%clk 0:02:29.7]} 15. Be3 {[%clk 0:02:35.5]}
15... Nbd7 {[%clk 0:02:26.2]} 16. Rc1 {[%clk 0:02:23.3]} 16... Qd6 {[%clk
0:02:27.7]} 17. Qd3 {[%clk 0:01:54.1]} 17... Rfd8 {[%clk 0:02:12.8]} 18. Rfd1
{[%clk 0:01:53.8]} 18... Bg6 {[%clk 0:02:02.1]} 19. Qb5 {[%clk 0:01:54.6]} 19...
Nb6 {[%clk 0:01:58.4]} 20. Qg5 {[%clk 0:01:49.4]} 20... h6 {[%clk 0:01:57.8]}
21. Qh4 {[%clk 0:01:48]} 21... Nbd5 {[%clk 0:01:57.2]} 22. Ne5 {[%clk
0:01:46.4]} 22... Bh7 {[%clk 0:01:58]} 23. Bh5 {[%clk 0:01:36.3]} 23... Nxh5
{[%clk 0:01:52.3]} 24. Qxh5 {[%clk 0:01:37.2]} 24... Qe7 {[%clk 0:01:48.7]} 25.
Qg4 {[%clk 0:00:54.7]} 25... Kh8 {[%clk 0:01:42.5]} 26. Qg3 {[%clk 0:00:52.3]}
26... Rac8 {[%clk 0:01:35.2]} 27. Qf3 {[%clk 0:00:51.1]} 27... Nf6 {[%clk
0:01:31.6]} 28. Rxc8 {[%clk 0:00:49]} 28... Rxc8 {[%clk 0:01:32.4]} 29. g4
{[%clk 0:00:43.9]} 29... Be4 {[%clk 0:01:29.4]} 30. Qf4 {[%clk 0:00:45.1]} 30...
g5 {[%clk 0:01:29]} 31. Qg3 {[%clk 0:00:36.7]} 31... Nd5 {[%clk 0:01:21.9]} 32.
h4 {[%clk 0:00:33.3]} 32... f6 {[%clk 0:01:23.2]} 33. Nf3 {[%clk 0:00:29.3]}
33... Kg7 {[%clk 0:01:16]} 34. Nd2 {[%clk 0:00:19.6]} 34... Nc3 {[%clk
0:01:15.7]} 35. Re1 {[%clk 0:00:14.2]} 35... Bd3 {[%clk 0:01:14.4]} 36. Kh2
{[%clk 0:00:08.4]} 36... b6 {[%clk 0:00:53.8]} 37. Bxg5 {[%clk 0:00:08.6]} 37...
hxg5 {[%clk 0:00:46.3]} 38. Qxd3 {[%clk 0:00:09.6]} 38... gxh4 {[%clk
0:00:47.3]} 39. Nf3 {[%clk 0:00:09.3]} 39... Nd5 {[%clk 0:00:43.6]} 40. Qe4
{[%clk 0:00:08.7]} 40... Qc7+ {[%clk 0:00:17.5]} 41. Kh3 {[%clk 0:00:07.6]}
41... Nf4+ {[%clk 0:00:17.6]} 42. Kxh4 {[%clk 0:00:06]} 42... Ng2+ {[%clk
0:00:18.9]} 43. Kh3 {[%clk 0:00:06.1]} 43... Nxe1 {[%clk 0:00:20.8]} 44. Qxe1
{[%clk 0:00:05]} 44... Qc3 {[%clk 0:00:22.7]} 45. Kg2 {[%clk 0:00:05.1]} 45...
Qxe1 {[%clk 0:00:23.5]} 46. Nxe1 {[%clk 0:00:05.4]} 46... Rc3 {[%clk 0:00:25.4]}
47. Nf3 {[%clk 0:00:04.3]} 47... Rxa3 {[%clk 0:00:26.6]} 48. d5 {[%clk
0:00:05.1]} 48... exd5 {[%clk 0:00:27.2]} 0

[Event "Open Nuevo Centro. Jornada 1"]
[Site "Chess.com"]
[Date "2020.06.19"]
[Round "7"]
[White "Rabbani Perez, Oumaima "]
[Black "Furio Martinez, Francisco"]
[Result "1-0"]
[WhiteElo "732"]
[BlackElo "645"]
[TimeControl "180+2"]
[EndTime "11:52:21 PDT"]
[Termination "Victoria de OumaimaMaria por tiempo"]

1. e3 {[%clk 0:02:59.8]} 1... d5 {[%clk 0:02:58.4]} 2. d4 {[%clk 0:02:52.5]}
2... e6 {[%clk 0:02:54.2]} 3. Bb5+ {[%clk 0:02:49.5]} 3... Nd7 {[%clk
0:02:52.6]} 4. Nc3 {[%clk 0:02:46.6]} 4... Nf6 {[%clk 0:02:51]} 5. Nf3 {[%clk
0:02:46.4]} 5... Be7 {[%clk 0:02:52.3]} 6. Na4 {[%clk 0:02:41.5]} 6... O-O
{[%clk 0:02:53]} 7. Nc5 {[%clk 0:02:41.2]} 7... Nxc5 {[%clk 0:02:51.1]} 8. dxc5
{[%clk 0:02:41]} 8... Bxc5 {[%clk 0:02:50.3]} 9. Ne5 {[%clk 0:02:37.8]} 9... b6
{[%clk 0:02:45.7]} 10. Bc6 {[%clk 0:02:36.3]} 10... Rb8 {[%clk 0:02:38.9]} 11.
e4 {[%clk 0:02:17.8]} 11... Bb7 {[%clk 0:02:21.3]} 12. Bxb7 {[%clk 0:02:11.9]}
12... Rxb7 {[%clk 0:02:21.2]} 13. exd5 {[%clk 0:02:11.4]} 13... exd5 {[%clk
0:02:19.2]} 14. Ng4 {[%clk 0:02:04.4]} 14... Nxg4 {[%clk 0:02:12.7]} 15. Qxg4
{[%clk 0:02:00.8]} 15... d4 {[%clk 0:02:13.1]} 16. Kd1 {[%clk 0:01:49.2]} 16...
Rb8 {[%clk 0:02:12.6]} 17. Re1 {[%clk 0:01:47.8]} 17... Rc8 {[%clk 0:02:11.4]}
18. Qh5 {[%clk 0:01:44]} 18... g6 {[%clk 0:02:04.6]} 19. Qh6 {[%clk 0:01:41.5]}
19... Be7 {[%clk 0:01:39.9]} 20. Re4 {[%clk 0:01:39.7]} 20... Bg5 {[%clk
0:01:35.4]} 21. Qh3 {[%clk 0:01:35.8]} 21... Bxc1 {[%clk 0:01:28]} 22. Rxc1
{[%clk 0:01:33.6]} 22... Re8 {[%clk 0:01:23.8]} 23. Qh6 {[%clk 0:01:32]} 23...
Rxe4 {[%clk 0:01:20.1]} 24. Kd2 {[%clk 0:01:30]} 24... d3 {[%clk 0:01:17.2]} 25.
cxd3 {[%clk 0:01:21.2]} 25... Rh4 {[%clk 0:01:17.5]} 26. Qe3 {[%clk 0:01:11.1]}
26... c5 {[%clk 0:01:06.8]} 27. g3 {[%clk 0:01:09.2]} 27... Rd4 {[%clk
0:01:04.8]} 28. Re1 {[%clk 0:01:00.9]} 28... Ra4 {[%clk 0:01:03.2]} 29. Qh6
{[%clk 0:00:53.9]} 29... Rxa2 {[%clk 0:01:01.7]} 30. Re4 {[%clk 0:00:51.2]}
30... Rxb2+ {[%clk 0:00:58.4]} 31. Kc3 {[%clk 0:00:51.4]} 31... Rxf2 {[%clk
0:00:57.7]} 32. Rh4 {[%clk 0:00:50.8]} 32... Re2 {[%clk 0:00:53.2]} 33. Qxh7+
{[%clk 0:00:48.5]} 33... Kf8 {[%clk 0:00:52.8]} 34. Qh8+ {[%clk 0:00:47.8]}
34... Ke7 {[%clk 0:00:50.9]} 35. Qg7 {[%clk 0:00:36.4]} 35... Kd6 {[%clk
0:00:43.8]} 36. Qxf7 {[%clk 0:00:25.4]} 36... Re7 {[%clk 0:00:39.9]} 37. Qxg6+
{[%clk 0:00:25]} 37... Re6 {[%clk 0:00:38.6]} 38. Qe4 {[%clk 0:00:20.6]} 38...
Qe8 {[%clk 0:00:16.4]} 39. Qh7 {[%clk 0:00:18.3]} 39... Kd5 {[%clk 0:00:13.9]}
40. d4 {[%clk 0:00:18.7]} 40... cxd4+ {[%clk 0:00:12.9]} 41. Kd3 {[%clk
0:00:15.5]} 41... Re3+ {[%clk 0:00:11.8]} 42. Kd2 {[%clk 0:00:14.4]} 42... d3
{[%clk 0:00:11.9]} 43. Kd1 {[%clk 0:00:13.7]} 43... d2 {[%clk 0:00:11.2]} 44.
Rh5+ {[%clk 0:00:13.5]} 44... Kd6 {[%clk 0:00:09.4]} 45. Qh6+ {[%clk 0:00:13.4]}
45... Kd7 {[%clk 0:00:07]} 46. Qh7+ {[%clk 0:00:12.3]} 46... Ke6 {[%clk
0:00:05.2]} 47. Qh6+ {[%clk 0:00:10.6]} 47... Kd7 {[%clk 0:00:04.2]} 48. Qh7+
{[%clk 0:00:09.9]} 48... Kc6 {[%clk 0:00:02.7]} 49. Qh6+ {[%clk 0:00:10.6]} 1

[Event "Open Nuevo Centro. Jornada 1"]
[Site "Chess.com"]
[Date "2020.06.19"]
[Round "7"]
[White "Ferrando Lacruz, Nicol�s "]
[Black "Birnoveanu, Petru"]
[Result "1-0"]
[WhiteElo "1391"]
[BlackElo "1541"]
[TimeControl "180+2"]
[EndTime "11:52:26 PDT"]
[Termination "Victoria de Nicolasvlc por tiempo"]

1. d4 {[%clk 0:03:00.2]} 1... g6 {[%clk 0:02:57.8]} 2. Bf4 {[%clk 0:02:59]} 2...
Bg7 {[%clk 0:02:57.3]} 3. Nf3 {[%clk 0:02:59.2]} 3... d6 {[%clk 0:02:58.3]} 4.
e3 {[%clk 0:02:59.8]} 4... Nd7 {[%clk 0:02:58.5]} 5. Bd3 {[%clk 0:03:00]} 5...
b6 {[%clk 0:02:59.3]} 6. c3 {[%clk 0:03:00.5]} 6... Bb7 {[%clk 0:02:59.4]} 7.
Nbd2 {[%clk 0:03:00.9]} 7... Ngf6 {[%clk 0:02:55.1]} 8. Bg5 {[%clk 0:02:59.9]}
8... O-O {[%clk 0:02:54.1]} 9. Bxf6 {[%clk 0:02:45]} 9... Bxf6 {[%clk
0:02:52.3]} 10. h4 {[%clk 0:02:40.3]} 10... h5 {[%clk 0:02:51.7]} 11. Ne4 {[%clk
0:02:33.4]} 11... Bg7 {[%clk 0:02:52.2]} 12. Neg5 {[%clk 0:02:25.3]} 12... e5
{[%clk 0:02:35.4]} 13. dxe5 {[%clk 0:02:22]} 13... Nxe5 {[%clk 0:02:34.5]} 14.
Nxe5 {[%clk 0:02:07]} 14... dxe5 {[%clk 0:02:31.5]} 15. Be4 {[%clk 0:02:04.2]}
15... Bxe4 {[%clk 0:02:26.9]} 16. Nxe4 {[%clk 0:02:04.8]} 16... Qe7 {[%clk
0:02:23.3]} 17. g4 {[%clk 0:02:01.1]} 17... Rad8 {[%clk 0:02:16]} 18. gxh5
{[%clk 0:02:00.9]} 18... Rxd1+ {[%clk 0:02:15.1]} 19. Rxd1 {[%clk 0:02:01.1]}
19... gxh5 {[%clk 0:02:10.8]} 20. Rg1 {[%clk 0:01:53.9]} 20... Kh8 {[%clk
0:02:08.1]} 21. Rg5 {[%clk 0:01:29.2]} 21... Rd8 {[%clk 0:01:52.3]} 22. Rxh5+
{[%clk 0:01:16.3]} 22... Kg8 {[%clk 0:01:51.8]} 23. Rxd8+ {[%clk 0:01:12.3]}
23... Qxd8 {[%clk 0:01:51.1]} 24. b4 {[%clk 0:00:54.6]} 24... Qd3 {[%clk
0:01:50.9]} 25. Ng3 {[%clk 0:00:39.3]} 25... Qxc3+ {[%clk 0:01:51.3]} 26. Kf1
{[%clk 0:00:33.4]} 26... Qa1+ {[%clk 0:01:45.3]} 27. Kg2 {[%clk 0:00:30]} 27...
Qxa2 {[%clk 0:01:46.1]} 28. Nf5 {[%clk 0:00:30.4]} 28... Bf6 {[%clk 0:01:40.1]}
29. Rh6 {[%clk 0:00:27.4]} 29... Qe6 {[%clk 0:01:30.7]} 30. e4 {[%clk
0:00:25.6]} 30... Qc4 {[%clk 0:01:11.1]} 31. f3 {[%clk 0:00:24.3]} 31... Qe2+
{[%clk 0:01:07.5]} 32. Kg3 {[%clk 0:00:24.1]} 32... Bd8 {[%clk 0:01:00.2]} 33.
h5 {[%clk 0:00:21.7]} 33... c5 {[%clk 0:00:58.9]} 34. bxc5 {[%clk 0:00:18.5]}
34... bxc5 {[%clk 0:00:59.5]} 35. f4 {[%clk 0:00:16.2]} 35... exf4+ {[%clk
0:00:50.8]} 36. Kxf4 {[%clk 0:00:15.5]} 36... Bc7+ {[%clk 0:00:51.2]} 37. Kg5
{[%clk 0:00:15.4]} 37... Qg2+ {[%clk 0:00:46.4]} 38. Kf6 {[%clk 0:00:15.7]}
38... Bd8+ {[%clk 0:00:39.2]} 39. Ke5 {[%clk 0:00:14.9]} 39... Qh2+ {[%clk
0:00:33.7]} 40. Kd5 {[%clk 0:00:10.5]} 40... Qf4 {[%clk 0:00:27.5]} 41. Ra6
{[%clk 0:00:06.7]} 41... Bb6 {[%clk 0:00:24.7]} 42. Ra2 {[%clk 0:00:05.1]} 42...
c4 {[%clk 0:00:12.5]} 43. Rg2+ {[%clk 0:00:05.9]} 43... Kf8 {[%clk 0:00:10.1]}
44. h6 {[%clk 0:00:07]} 44... c3 {[%clk 0:00:05.1]} 45. h7 {[%clk 0:00:08.3]}
1

[Event "Open Nuevo Centro. Jornada 1"]
[Site "Chess.com"]
[Date "2020.06.19"]
[Round "7"]
[White "Luque Saiz, Andres"]
[Black "Montesinos Diaz, Luis"]
[Result "1-0"]
[WhiteElo "1903"]
[BlackElo "1923"]
[TimeControl "180+2"]
[EndTime "11:52:38 PDT"]
[Termination "Victoria de Chuch1n por tiempo"]

1. e4 {[%clk 0:03:01.9]} 1... c6 {[%clk 0:02:57.9]} 2. d4 {[%clk 0:03:02.7]}
2... d5 {[%clk 0:02:57.1]} 3. Nd2 {[%clk 0:03:04.1]} 3... dxe4 {[%clk
0:02:53.9]} 4. Nxe4 {[%clk 0:03:06]} 4... Bf5 {[%clk 0:02:55.6]} 5. Ng3 {[%clk
0:03:06.7]} 5... Bg6 {[%clk 0:02:56.6]} 6. N1e2 {[%clk 0:03:04.8]} 6... Nd7
{[%clk 0:02:55.1]} 7. Nf4 {[%clk 0:03:02.6]} 7... e5 {[%clk 0:02:51.5]} 8. Nxg6
{[%clk 0:03:03.2]} 8... hxg6 {[%clk 0:02:51.6]} 9. dxe5 {[%clk 0:02:44.5]} 9...
Nxe5 {[%clk 0:02:51.7]} 10. Qe2 {[%clk 0:02:41.5]} 10... Qe7 {[%clk 0:02:47.3]}
11. Bf4 {[%clk 0:02:40.1]} 11... Nd7 {[%clk 0:02:42.7]} 12. O-O-O {[%clk
0:02:37.1]} 12... Qxe2 {[%clk 0:02:41.4]} 13. Bxe2 {[%clk 0:02:39]} 13... O-O-O
{[%clk 0:02:42.3]} 14. Bf3 {[%clk 0:02:30.2]} 14... Ngf6 {[%clk 0:02:42.1]} 15.
h3 {[%clk 0:02:29.2]} 15... Bc5 {[%clk 0:02:38]} 16. Rd2 {[%clk 0:02:21.3]}
16... Nb6 {[%clk 0:02:33.5]} 17. Rhd1 {[%clk 0:02:19.9]} 17... Rxd2 {[%clk
0:02:29.8]} 18. Rxd2 {[%clk 0:02:21.8]} 18... Rd8 {[%clk 0:02:30.2]} 19. Rxd8+
{[%clk 0:01:38.2]} 19... Kxd8 {[%clk 0:02:32.1]} 20. Be3 {[%clk 0:01:39.5]}
20... Bxe3+ {[%clk 0:02:33]} 21. fxe3 {[%clk 0:01:41.4]} 21... Nbd5 {[%clk
0:02:33.6]} 22. Kd2 {[%clk 0:01:42.2]} 22... Ke7 {[%clk 0:02:33.8]} 23. c4
{[%clk 0:01:42.5]} 23... Nb6 {[%clk 0:02:34.8]} 24. Kd3 {[%clk 0:01:42.6]} 24...
Ke6 {[%clk 0:02:32.4]} 25. Ne2 {[%clk 0:01:38.6]} 25... Nbd7 {[%clk 0:02:25.2]}
26. Nd4+ {[%clk 0:01:33.1]} 26... Kd6 {[%clk 0:02:24.7]} 27. Kc3 {[%clk
0:01:26.2]} 27... Nc5 {[%clk 0:02:12.3]} 28. b4 {[%clk 0:01:22.5]} 28... Nce4+
{[%clk 0:02:12.3]} 29. Kd3 {[%clk 0:01:20.6]} 29... Nf2+ {[%clk 0:02:04.1]} 30.
Ke2 {[%clk 0:01:20.3]} 30... N2e4 {[%clk 0:01:56.7]} 31. Kd3 {[%clk 0:01:20.3]}
31... Nf2+ {[%clk 0:01:51.9]} 32. Kc3 {[%clk 0:01:10]} 32... N2e4+ {[%clk
0:01:52.3]} 33. Kc2 {[%clk 0:01:09.7]} 33... Ke5 {[%clk 0:01:40.5]} 34. Nb3
{[%clk 0:01:06.9]} 34... Nd6 {[%clk 0:01:31.6]} 35. Kd3 {[%clk 0:01:06.2]} 35...
Nd7 {[%clk 0:01:03.3]} 36. Na5 {[%clk 0:01:02.9]} 36... c5 {[%clk 0:00:50.6]}
37. b5 {[%clk 0:00:53.3]} 37... Nb6 {[%clk 0:00:38.6]} 38. Nxb7 {[%clk
0:00:40.3]} 38... Nbxc4 {[%clk 0:00:38.7]} 39. Nxc5 {[%clk 0:00:39.5]} 39...
Nb2+ {[%clk 0:00:38.9]} 40. Kc3 {[%clk 0:00:36.7]} 40... Nbc4 {[%clk 0:00:36.9]}
41. Nd3+ {[%clk 0:00:32.3]} 41... Ke6 {[%clk 0:00:37]} 42. e4 {[%clk 0:00:29.9]}
42... Na3 {[%clk 0:00:30.3]} 43. Nc5+ {[%clk 0:00:22]} 43... Ke7 {[%clk
0:00:27]} 44. Kb4 {[%clk 0:00:19.9]} 44... Naxb5 {[%clk 0:00:27.8]} 45. e5
{[%clk 0:00:20.8]} 45... Nd4 {[%clk 0:00:03.9]} 46. exd6+ {[%clk 0:00:21]} 46...
Kxd6 {[%clk 0:00:05.8]} 47. Ne4+ {[%clk 0:00:21.7]} 47... Ke5 {[%clk 0:00:05.5]}
48. Nd2 {[%clk 0:00:22.7]} 48... f5 {[%clk 0:00:06.2]} 49. Ka5 {[%clk
0:00:22.7]} 49... g5 {[%clk 0:00:06.6]} 50. Bb7 {[%clk 0:00:23.4]} 50... f4
{[%clk 0:00:03.5]} 51. Nf3+ {[%clk 0:00:24.3]} 51... Nxf3 {[%clk 0:00:04.7]} 52.
Bxf3 {[%clk 0:00:26.2]} 52... Kd4 {[%clk 0:00:06.1]} 53. Ka6 {[%clk 0:00:27.2]}
53... Kc3 {[%clk 0:00:07.6]} 54. a4 {[%clk 0:00:28.3]} 54... Kb3 {[%clk
0:00:09.2]} 55. a5 {[%clk 0:00:29.4]} 55... Kb4 {[%clk 0:00:10.5]} 56. Bg4
{[%clk 0:00:29.8]} 56... g6 {[%clk 0:00:10.8]} 57. Bd7 {[%clk 0:00:29.5]} 57...
f3 {[%clk 0:00:10.4]} 58. gxf3 {[%clk 0:00:31.4]} 58... g4 {[%clk 0:00:10.8]}
59. hxg4 {[%clk 0:00:33.1]} 1

[Event "Open Nuevo Centro. Jornada 1"]
[Site "Chess.com"]
[Date "2020.06.19"]
[Round "7"]
[White "Ursariu, Nikolas Victor"]
[Black "Mart�nez Carvajal, Juan Francisco"]
[Result "0-1"]
[WhiteElo "1305"]
[BlackElo "1744"]
[TimeControl "180+2"]
[EndTime "11:52:47 PDT"]
[Termination "Victoria de JuanFcoMtnezCarvajal por jaque mate"]

1. e4 {[%clk 0:03:01.2]} 1... c5 {[%clk 0:03:00.2]} 2. Nf3 {[%clk 0:03:01.8]}
2... Nc6 {[%clk 0:02:58.1]} 3. c4 {[%clk 0:03:00.9]} 3... d6 {[%clk 0:02:54]} 4.
Nc3 {[%clk 0:02:58.8]} 4... g6 {[%clk 0:02:53]} 5. d4 {[%clk 0:02:52]} 5... cxd4
{[%clk 0:02:49.8]} 6. Nxd4 {[%clk 0:02:53.9]} 6... Bg7 {[%clk 0:02:50.4]} 7.
Nxc6 {[%clk 0:02:52.9]} 7... bxc6 {[%clk 0:02:50.4]} 8. Bd2 {[%clk 0:02:51.3]}
8... Nf6 {[%clk 0:02:45.7]} 9. g3 {[%clk 0:02:48]} 9... O-O {[%clk 0:02:45.7]}
10. Bg2 {[%clk 0:02:47.1]} 10... Rb8 {[%clk 0:02:35.7]} 11. Rb1 {[%clk
0:02:44.4]} 11... Be6 {[%clk 0:02:26.7]} 12. Qe2 {[%clk 0:02:39.1]} 12... Ng4
{[%clk 0:02:09]} 13. O-O {[%clk 0:02:33.4]} 13... Ne5 {[%clk 0:02:08.4]} 14. Bf4
{[%clk 0:02:27.8]} 14... Nxc4 {[%clk 0:02:05.8]} 15. Rfd1 {[%clk 0:02:21.4]}
15... Ne5 {[%clk 0:01:50.4]} 16. Bxe5 {[%clk 0:02:20.9]} 16... Bxe5 {[%clk
0:01:50.3]} 17. Qd2 {[%clk 0:01:49.9]} 17... Qa5 {[%clk 0:01:40.5]} 18. Ne2
{[%clk 0:01:44.9]} 18... Qxa2 {[%clk 0:01:33.4]} 19. Qc1 {[%clk 0:01:07.1]}
19... c5 {[%clk 0:01:27.2]} 20. Nc3 {[%clk 0:01:02.6]} 20... Bxc3 {[%clk
0:01:21.3]} 21. bxc3 {[%clk 0:01:00.6]} 21... Rxb1 {[%clk 0:01:21.4]} 22. Qxb1
{[%clk 0:00:58.9]} 22... Qxb1 {[%clk 0:01:21.7]} 23. Rxb1 {[%clk 0:00:45.8]}
23... Bc4 {[%clk 0:01:07.8]} 24. Rb7 {[%clk 0:00:40.4]} 24... a5 {[%clk
0:00:39.7]} 25. Rxe7 {[%clk 0:00:35.1]} 25... a4 {[%clk 0:00:35.1]} 26. Ra7
{[%clk 0:00:35]} 26... Bb3 {[%clk 0:00:35.3]} 27. Kf1 {[%clk 0:00:27.3]} 27...
Rd8 {[%clk 0:00:30.6]} 28. Ke2 {[%clk 0:00:27.8]} 28... Kg7 {[%clk 0:00:28.6]}
29. Kd2 {[%clk 0:00:22.4]} 29... Kf6 {[%clk 0:00:28.3]} 30. Kc1 {[%clk 0:00:20]}
30... h5 {[%clk 0:00:19.5]} 31. Kb2 {[%clk 0:00:21.9]} 31... Ke6 {[%clk
0:00:19.4]} 32. Ka3 {[%clk 0:00:19.6]} 32... f5 {[%clk 0:00:20.2]} 33. Ra6
{[%clk 0:00:19.1]} 33... Ke5 {[%clk 0:00:20.2]} 34. exf5 {[%clk 0:00:19]} 34...
gxf5 {[%clk 0:00:21.4]} 35. Ra5 {[%clk 0:00:18.6]} 35... Ke6 {[%clk 0:00:16.6]}
36. Ra6 {[%clk 0:00:17.2]} 36... c4 {[%clk 0:00:17.4]} 37. Bf3 {[%clk
0:00:14.4]} 37... h4 {[%clk 0:00:17.1]} 38. Bg2 {[%clk 0:00:12.4]} 38... hxg3
{[%clk 0:00:15.3]} 39. hxg3 {[%clk 0:00:14.3]} 39... Rh8 {[%clk 0:00:15.5]} 40.
Bc6 {[%clk 0:00:09.6]} 40... Rh2 {[%clk 0:00:15.7]} 41. Bb7 {[%clk 0:00:09]}
41... Rxf2 {[%clk 0:00:15.9]} 42. Bc8+ {[%clk 0:00:09.2]} 42... Ke5 {[%clk
0:00:16.1]} 43. Ra5+ {[%clk 0:00:10]} 43... d5 {[%clk 0:00:17.3]} 44. Bxf5
{[%clk 0:00:08.5]} 44... Kxf5 {[%clk 0:00:17.4]} 45. Rxd5+ {[%clk 0:00:08.6]}
45... Kg4 {[%clk 0:00:18.6]} 46. Rc5 {[%clk 0:00:08.8]} 46... Kxg3 {[%clk
0:00:19.3]} 47. Rb5 {[%clk 0:00:09.4]} 47... Kf3 {[%clk 0:00:19.7]} 48. Rf5+
{[%clk 0:00:09.4]} 48... Ke2 {[%clk 0:00:20.8]} 49. Rxf2+ {[%clk 0:00:11.3]}
49... Kxf2 {[%clk 0:00:21.7]} 50. Kb4 {[%clk 0:00:12.1]} 50... Ke2 {[%clk
0:00:22.8]} 51. Ka3 {[%clk 0:00:12.9]} 51... Kd2 {[%clk 0:00:24]} 52. Kb4 {[%clk
0:00:14.2]} 52... Kc2 {[%clk 0:00:25.4]} 53. Ka3 {[%clk 0:00:14.4]} 53... Kb1
{[%clk 0:00:26.6]} 54. Kb4 {[%clk 0:00:15.2]} 54... Kb2 {[%clk 0:00:27.5]} 55.
Kb5 {[%clk 0:00:14.2]} 55... Kxc3 {[%clk 0:00:28.7]} 56. Ka5 {[%clk 0:00:13.1]}
56... a3 {[%clk 0:00:29.9]} 57. Kb5 {[%clk 0:00:13.8]} 57... a2 {[%clk
0:00:31.2]} 58. Kc5 {[%clk 0:00:15.4]} 58... a1=Q {[%clk 0:00:32.1]} 59. Kd5
{[%clk 0:00:17.3]} 59... Qa5+ {[%clk 0:00:33.1]} 60. Ke4 {[%clk 0:00:17.8]}
60... Bc2+ {[%clk 0:00:32.6]} 61. Kf3 {[%clk 0:00:19.7]} 61... Kd3 {[%clk
0:00:33.5]} 62. Kf2 {[%clk 0:00:20]} 62... Qf5+ {[%clk 0:00:33.3]} 63. Kg2
{[%clk 0:00:20.5]} 63... Qg4+ {[%clk 0:00:34.2]} 64. Kh2 {[%clk 0:00:21]} 64...
Ke2 {[%clk 0:00:34.2]} 65. Kh1 {[%clk 0:00:22.9]} 65... Be4+ {[%clk 0:00:34.7]}
66. Kh2 {[%clk 0:00:23.3]} 66... Qg2# {[%clk 0:00:36.2]} 0